{"text_format":"1","workbook":"xlsx","n_sheets":2,"sheets":["Лист1","Лист2"],"not_rendered":{"charts":0,"images":0,"macros":0,"external_links":0,"defined_names":1,"comments":0,"pivot_tables":0},"unopened":[],"bounds":{"document_bytes":16777216,"sheet_cells":100000,"rows_first":2000,"rows_last":500,"rows_between":2000,"halvings":0,"cell_chars":16384,"cell_head_chars":4096},"cells_cut":0,"cells_raw":0,"read":"whole","date_system":"1900"}

{"sheet":"Лист1","index":0,"n_rows":7,"n_cols":12,"rows_kept":7,"cut":false,"hidden":false,"merged":[[1,2,1,9],[4,1,5,1],[4,4,5,4],[4,3,5,3],[4,5,5,6],[7,5,7,6],[4,7,4,10],[4,12,5,12],[4,2,5,2],[6,5,6,6]]}
[null,null,null,null,null,"ОТЧЕТ"]
[null,null,"  о реализации проектов в рамках программы приграничного сотрудничества Европейского инструмента соседства и партнерства (ПГС) \"Эстония - Латвия - Россия\""]
[]
[]
[null,"Код по бюджетной классификации бюджета, предоставляющего межбюджетный трансферт","Код по классификации доходов бюджета, получающего межбюджетный трансферт","Утверждено бюджетных назначений на 2012 год","Неиспользованный остаток межбюджетного трансферта, подлежащий возврату","Расходы, подтвержденные документами",null,"Принятые бюджетные обязательства",null,null,null,"Примечания "]
[null,null,null,null,null,null,null,"контрагент","номер и дата договора","сумма договора","выполнено работ (сумма)","(перечень основных видов выполненных работ, причины возникновения остатка)"]
[null,1,5,2,3,4,null,6,7,8,9,10]

{"sheet":"Лист2","index":1,"n_rows":58,"n_cols":19,"rows_kept":58,"cut":false,"hidden":false,"merged":[[5,1,6,1],[7,10,7,11],[24,15,24,16],[25,13,25,14],[25,15,25,16],[23,1,23,12],[23,13,23,16],[24,13,24,14],[8,10,8,11],[14,10,14,11],[9,10,9,11],[10,10,10,11],[11,10,11,11],[3,2,3,17],[5,4,6,4],[5,10,6,11],[5,8,6,8],[5,5,6,5],[5,12,5,17],[5,6,6,6],[5,9,6,9],[5,2,6,2],[5,3,6,3],[5,7,6,7]]}
[]
[]
[null,null,null,null,null,null,null,null,null,"ОТЧЕТ"]
[null,null,"     об использовании субсидии, предоставленной из областного бюджета Ленинградской области Скребловскому сельскому поселению Лужского муниципального района ЛО на реализацию проектов местных инициатив граждан в рамках подпрограммы «Создание условий для эффективного выполнения органами местного самоуправления своих полномочий» государственной программы Ленинградской области «Устойчивое общественное развитие в Ленинградской области»     за   2015 год"]
[]
[null,"Код по бюджетной классификации бюджета, предостав-ляющего межбюджетный трансферт","Код по классификации доходов бюджета, получающего межбюджетный трансферт","Утверждено бюджетных назначений на 2015 год (областной и местный бюджет)","Поступило средств областного бюджета","Размер софинансирования  из местного бюджета","Расходы, подтвержденные документами и произведенные за счет средств областного бюджета","Расходы, подтвержденные документами и произведенные за счет средств местного бюджета","Неиспользо-ванный остаток межбюджетного трансферта, подлежащий возврату","Наименование мероприятия",null,null,"Принятые бюджетные обязательства"]
[null,null,null,null,null,null,null,null,null,null,null,null,"контрагент","номер и дата договора","наименование работ","сумма договора","выполнено работ (сумма)","номер, дата акта выпол-ненных работ","Фактические показатели  результативности использования субсидии"]
[null,"990 1403         6637088             521   251          ","011 202 02999 10 0000 151",{"$f":"E8+F8","v":358357.31},"325779,39","32577,92","325779,39","32577,92",{"$f":"E8-G8","v":0},"Ремонт участка дороги общего пользования местного значения д.Наволок",null,null,"ООО \"Вираж\"","МК №  238983 от 13.07.15г.( с ДС от 12.08.15г)","Ремонт участка дороги общего пользования местного значения д.Наволок",358357.31,358357.31,"Акт №1/7 (КС 2)  от 13.08.15г. к см. № 5,   ",900]
[null,null,null,{"$f":"E9+F9","v":76849.02},"69862,75","6986,27","69862,75","6986,27",{"$f":"E9-G9","v":0},"Ремонт участка дороги общего пользования местного значения д.Калгановка",null,null,"ООО \"Вираж\"","МК №  238983 от 13.07.15г.( с ДС от 12.08.15г)","Ремонт участка дороги общего пользования местного значения д.Калгановка",76849.02,76849.02,"Акт №1/5 (КС 2)  от 13.08.15г. к см. № 6,   ",193]
[null,null,null,76849.02,"69862,75","6986,27","69862,75","6986,27",0,"Ремонт участка дороги общего пользования местного значения д.Петровская Горка",null,null,"ООО \"Вираж\"","МК №  238983 от 13.07.15г.( с ДС от 12.08.15г)","Ремонт участка дороги общего пользования местного значения д.Петровская Горка",76849.02,76849.02,"Акт №1/6 (КС 2)  от 13.08.15г. к см. № 6,   ",193]
[null,null,null,76849.02,"69862,75","6986,27","69862,75","6986,27",0,"Ремонт участка дороги общего пользования местного значения д.Великое Село и Заречье",null,null,"ООО \"Вираж\"","МК №  238983 от 13.07.15г.( с ДС от 12.08.15г)","Ремонт участка дороги общего пользования местного значения д.Великое Село и Заречье",76849.02,76849.02,"Акт №1/3 (КС 2)  от 13.08.15г. к см. № 7,   ",193]
[null,null,null,76849.02,"69862,75","6986,27","69862,75","6986,27",0,"Ремонт участка дороги общего пользования местного значения д.Домкино",null,null,"ООО \"Вираж\"","МК №  238983 от 13.07.15г.( с ДС от 12.08.15г)","Ремонт участка дороги общего пользования местного значения д.Домкино",76849.02,76849.02,"Акт №1/4 (КС 2)  от 13.08.15г. к см. № 8,   ",193]
[null,null,null,76849.02,"69862,75","6986,27","69862,75","6986,27",0,"Ремонт участка дороги общего пользования местного значения д.Старая Середка",null,null,"ООО \"Вираж\"","МК №  238983 от 13.07.15г.( с ДС от 12.08.15г)","Ремонт участка дороги общего пользования местного значения д.Старая Середка",76849.02,76849.02,"Акт №1/2 (КС 2)  от 13.08.15г. к см. № 9,   ",193]
[null,null,null,129203.48999999999,"117457,73","11745,76","117457,73","11745,76",0,"Ремонт участка дороги общего пользования местного значения д.Ванино Поле и Задубье",null,null,"ООО \"Вираж\"","МК №  238983 от 13.07.15г.( с ДС от 12.08.15г)","Ремонт участка дороги общего пользования местного значения д.Ванино Поле и Задубье",129203.49,129203.49,"Акт №1/1 (КС 2)  от 13.08.15г. к см. № 10,   ",338]
[null,null,null,451172,"341449,13","109722,87","341449,13","109722,87",0,"Ремонт участка дороги общего пользования местного значения д.Задубье",null,null,"ООО \"Вираж\"","МК 0145300013614000010 от 21.10.15г.","Ремонт участка дороги общего пользования местного значения д.Задубье",451172,451172,"Акт №1 (КС 2)  от 30.10.15г. к см. № 1,   ",1225]
[null,"Итого по ООО \"ВИРАЖ\" по 2-м МК",null,1322977.8999999999,{"$f":"E8+E9+E10+E11+E12+E13+E14+E15","v":1134000},188977.90000000002,1134000,188977.90000000002,0,null,null,null,null,null,null,{"$f":"P8+P9+P10+P11+P12+P13+P14+P15","v":1322977.8999999999},{"$f":"Q8+Q9+Q10+Q11+Q12+Q13+Q14+Q15","v":1322977.8999999999}]
[]
[null,"990 1403         6637088             521   251          ","011 202 02999 10 0000 151",{"$f":"E18+F18","v":195401.86},"158145,00","37256,86","158145,00","37256,86",{"$f":"E18-G18","v":0},"Замена светильников уличного освещения в д.Наволок",null,null,"ООО \"СтройЭнергоСервис\"\"","Контракт 32/с/15 от 23.07.15г.на материалы - 96360,10руб. И Контракт 29/С/15 от 30.07.15 г. на работы - 99041,76 руб.","Замена светильников уличного освещения в д.Наволок",195401.86,{"$f":"P18","v":195401.86},"накл. 172 от 28.07.15г.; акт 1(КС-2)  от 25.08.15г. ",17]
[null,null,null,{"$f":"E19+F19","v":189817.34},153620,36197.339999999997,153620,36197.339999999997,{"$f":"E19-G19","v":0},"Замена светильников уличного освещения в д.Госткино",null,null,"ООО \"СтройЭнергоСервис\"\"","Контракт 31/с/15 от 23.07.15г.на материалы - 91523,10руб. И Контракт 28/С/15 от 30.07.15 г. на работы - 98294,24 руб.","Замена светильников уличного освещения в д.Госткино",189817.34,189817.34,"накл. 173 от 29.07.15г.; акт 1(КС-2)  от 25.08.15г. ",16]
[null,null,null,195422.56,158155,37267.56,158155,37267.56,0,"Замена светильников уличного освещения в д.Голубково",null,null,"ООО \"СтройЭнергоСервис\"\"","Контракт 33/с/15 от 23.07.15г.на материалы - 96380,80руб. И Контракт 30/С/15 от 30.07.15 г. на работы - 99041,76 руб.","Замена светильников уличного освещения в д.Голубково",195422.56,195422.56,"накл. 171 от 27.07.15г.; акт 1(КС-2)  от 25.08.15г. ",17]
[null,null,null,null,null,null,null,null,0]
[null,"Итого по ООО \"Вираж\"",null,{"$f":"D18+D19+D20","v":580641.76},{"$f":"E18+E19+E20","v":469920},110721.76,469920,110721.76,0,null,null,null,null,null,null,{"$f":"P18+P19+P20","v":580641.76},{"$f":"Q18+Q19+Q20","v":580641.76}]
[null,"ИТОГО",null,{"$f":"D16+D22","v":1903619.66},{"$f":"E16+E22","v":1603920},{"$f":"F16+F22","v":299699.66000000003},{"$f":"G16+G22","v":1603920},{"$f":"H16+H22","v":299699.66000000003},{"$f":"E23-G23","v":0},null,null,null,null,null,null,{"$f":"P16+P22","v":1903619.66},{"$f":"Q16+Q22","v":1903619.66}]
[null,"Глава администрации поселения \nЛенинградской области                       __________       Н.Е.Кулакова\n                                                                   (подпись)          (фамилия, инициалы)\nРуководитель финансового органа    ___________   М.Н.Куваева\n                                                                    (подпись)       (фамилия, инициалы)\n",null,null,null,null,null,null,null,null,null,null,null,"Согласовано :                                                                             председатель комитета по местному самоуправлению, межнациональным и межконфессиональным отношениям Ленинградской области                          __________   Бурак Л.В."]
[]
[]
[null,"Исполнитель                    Куваева Марина Николаевна   тел. 8-81372-58-517"]
[null,"                                                (фамилия, инициалы)   (номер телефона)"]
[null,"26 декабря 2015 года"]
[]
[null,"Согласовано : Комитет финансов Лужского МР ЛО"]
[]
[null,"________________   __________________"]
[]
[null,"\"_____\" декабря 2015г."]
[]
[]
[]
[]
[]
[]
[]
[]
[]
[]
[]
[]
[]
[]
[]
[]
[]
[]
[null,null,null,"%",null,null,"дороги",null,null,null,null,null,null,"замена светильников"]
[null,"Всего ",{"$f":"G55+N55","v":1903619.66},{"$f":"D56+D58","v":100.00000000000001},null,null,{"$f":"G56+G58","v":1322977.8999999999},null,null,null,null,null,null,{"$f":"N56+N58","v":580641.76}]
[null,"Обл.бюдж.",{"$f":"G56+N56","v":1603920},{"$f":"C56/C55*100","v":84.256326707615543},null,null,{"$f":"E16","v":1134000},null,{"$f":"G56/G55*100","v":85.71571754902331},null,null,null,null,{"$f":"E22","v":469920},{"$f":"N56/N55*100","v":80.931140743304439}]
[]
[null,"местн.бюд.",{"$f":"G58+N58","v":299699.65999999997},{"$f":"C58/C55*100","v":15.743673292384466},null,null,188977.9,null,{"$f":"G58/G55*100","v":14.284282450976695},null,null,null,null,110721.76,{"$f":"N58/N55*100","v":19.068859256695557}]